[Event "*** MasterClass Titled Tuesday Blitz"]
[Site "Chess.com"]
[Date "2017.09.05"]
[Round "1"]
[White "kleinebeer98"]
[Black "playablecharacter"]
[Result "1-0"]
[WhiteElo "2429"]
[BlackElo "2029"]
[TimeControl "180+2"]
[EndTime "13:07:11 PDT"]
[Termination "kleinebeer98 won by checkmate"]

1. e4 {[%clk 0:03:01.9]} 1... c6 {[%clk 0:02:59.8]} 2. d4 {[%clk 0:03:02.6]}
2... d5 {[%clk 0:03:01.7]} 3. f3 {[%clk 0:03:04.3]} 3... Nf6 {[%clk 0:03:01.4]}
4. Nc3 {[%clk 0:03:03.5]} 4... e6 {[%clk 0:02:49.1]} 5. Be3 {[%clk 0:02:40.4]}
5... Bb4 {[%clk 0:02:46.3]} 6. Bd3 {[%clk 0:02:40.5]} 6... O-O {[%clk
0:02:41.3]} 7. Ne2 {[%clk 0:02:34.5]} 7... dxe4 {[%clk 0:02:17.5]} 8. fxe4
{[%clk 0:02:30.8]} 8... e5 {[%clk 0:02:10.4]} 9. a3 {[%clk 0:02:10.9]} 9...
Bxc3+ {[%clk 0:02:03.2]} 10. bxc3 {[%clk 0:02:12.8]} 10... Bg4 {[%clk
0:01:59.4]} 11. O-O {[%clk 0:02:07.1]} 11... Nbd7 {[%clk 0:01:46.8]} 12. Qe1
{[%clk 0:01:44.1]} 12... Bxe2 {[%clk 0:01:34.6]} 13. Qxe2 {[%clk 0:01:36.3]}
13... Qe7 {[%clk 0:01:27.5]} 14. Bg5 {[%clk 0:01:29.5]} 14... Rfe8 {[%clk
0:01:17.7]} 15. Rf2 {[%clk 0:01:25.6]} 15... h6 {[%clk 0:01:09.6]} 16. Bxf6
{[%clk 0:01:11.6]} 16... Nxf6 {[%clk 0:01:10.2]} 17. Raf1 {[%clk 0:01:13.5]}
17... Rad8 {[%clk 0:00:56.9]} 18. Rf5 {[%clk 0:01:14.6]} 18... exd4 {[%clk
0:00:32.8]} 19. e5 {[%clk 0:01:16.5]} 19... Nd5 {[%clk 0:00:30.6]} 20. cxd4
{[%clk 0:00:55.2]} 20... Rf8 {[%clk 0:00:29]} 21. Qf3 {[%clk 0:00:44.6]} 21...
g6 {[%clk 0:00:24.3]} 22. Qg3 {[%clk 0:00:35.1]} 22... Kh7 {[%clk 0:00:24.4]}
23. R5f3 {[%clk 0:00:33.9]} 23... Kg7 {[%clk 0:00:21.8]} 24. h4 {[%clk
0:00:33.5]} 24... f5 {[%clk 0:00:22.9]} 25. exf6+ {[%clk 0:00:33.6]} 25... Rxf6
{[%clk 0:00:24.4]} 26. Rxf6 {[%clk 0:00:34.7]} 26... Nxf6 {[%clk 0:00:25.9]} 27.
Qxg6+ {[%clk 0:00:36.1]} 27... Kh8 {[%clk 0:00:27.1]} 28. Rxf6 {[%clk 0:00:38]}
28... Rxd4 {[%clk 0:00:27.4]} 29. Rf8+ {[%clk 0:00:38]} 29... Qxf8 {[%clk
0:00:28]} 30. Qh7# {[%clk 0:00:39.9]} 1-0

[Event "*** MasterClass Titled Tuesday Blitz"]
[Site "Chess.com"]
[Date "2017.09.05"]
[Round "1"]
[White "Izoria123"]
[Black "AbdAlAgathos"]
[Result "1-0"]
[WhiteElo "2638"]
[BlackElo "2344"]
[TimeControl "180+2"]
[EndTime "13:07:14 PDT"]
[Termination "Izoria123 won by resignation"]

1. e4 {[%clk 0:03:01.8]} 1... e6 {[%clk 0:03:00.5]} 2. Qe2 {[%clk 0:03:00.4]}
2... c5 {[%clk 0:02:59.6]} 3. Nf3 {[%clk 0:03:00.4]} 3... Nc6 {[%clk 0:03:00.5]}
4. c3 {[%clk 0:03:01.8]} 4... Nf6 {[%clk 0:02:44.8]} 5. g3 {[%clk 0:03:01.5]}
5... Be7 {[%clk 0:02:43]} 6. Bg2 {[%clk 0:02:59.6]} 6... d5 {[%clk 0:02:43.5]}
7. e5 {[%clk 0:02:59]} 7... Nd7 {[%clk 0:02:43.2]} 8. d4 {[%clk 0:02:59.8]} 8...
a5 {[%clk 0:02:20.8]} 9. O-O {[%clk 0:02:59.7]} 9... b6 {[%clk 0:02:21.8]} 10.
Re1 {[%clk 0:03:00.3]} 10... Ba6 {[%clk 0:02:19]} 11. Qd1 {[%clk 0:03:01.1]}
11... cxd4 {[%clk 0:02:16]} 12. cxd4 {[%clk 0:03:03]} 12... Nb4 {[%clk
0:02:15.7]} 13. Bf1 {[%clk 0:03:03.3]} 13... Bxf1 {[%clk 0:02:14.2]} 14. Rxf1
{[%clk 0:02:59.4]} 14... Qc8 {[%clk 0:01:55.8]} 15. Nc3 {[%clk 0:02:59.5]} 15...
Qa6 {[%clk 0:01:56.6]} 16. Qa4 {[%clk 0:02:50.1]} 16... Rd8 {[%clk 0:01:36.7]}
17. Nb5 {[%clk 0:02:48.4]} 17... O-O {[%clk 0:01:34.4]} 18. Bd2 {[%clk
0:02:44.7]} 18... Nb8 {[%clk 0:01:23.2]} 19. a3 {[%clk 0:02:38.1]} 19... N4c6
{[%clk 0:01:05.6]} 20. Rac1 {[%clk 0:02:38.4]} 20... Na7 {[%clk 0:01:02.2]} 21.
Nxa7 {[%clk 0:02:30.6]} 21... Qxa7 {[%clk 0:01:04.1]} 22. Rc3 {[%clk 0:02:28.9]}
22... f6 {[%clk 0:00:50.1]} 23. Rfc1 {[%clk 0:02:28.1]} 23... fxe5 {[%clk
0:00:49.1]} 24. Rc7 {[%clk 0:02:22.1]} 24... Qa6 {[%clk 0:00:49.3]} 25. Nxe5
{[%clk 0:01:35]} 25... Bd6 {[%clk 0:00:39.2]} 26. R7c2 {[%clk 0:01:24.4]} 26...
Bxe5 {[%clk 0:00:38.3]} 27. dxe5 {[%clk 0:01:26.4]} 27... Nd7 {[%clk 0:00:37.7]}
28. Bg5 {[%clk 0:01:27.3]} 28... Nxe5 {[%clk 0:00:34.1]} 29. Bxd8 {[%clk
0:01:27.8]} 29... Rxd8 {[%clk 0:00:34]} 30. Qf4 {[%clk 0:01:04.7]} 30... Nd3
{[%clk 0:00:24]} 31. Qg5 {[%clk 0:00:56.8]} 31... Rf8 {[%clk 0:00:22.6]} 32. Rd1
{[%clk 0:00:57.7]} 32... Nxf2 {[%clk 0:00:21.9]} 33. Rxf2 {[%clk 0:00:56.5]} 1-0

[Event "*** MasterClass Titled Tuesday Blitz"]
[Site "Chess.com"]
[Date "2017.09.05"]
[Round "1"]
[White "Aygehovit1992"]
[Black "Blitzking4444"]
[Result "1-0"]
[WhiteElo "2449"]
[BlackElo "2074"]
[TimeControl "180+2"]
[EndTime "13:07:14 PDT"]
[Termination "Aygehovit1992 won by checkmate"]

1. e4 {[%clk 0:03:01.9]} 1... e6 {[%clk 0:02:57.9]} 2. d4 {[%clk 0:02:57.8]}
2... d5 {[%clk 0:02:58.8]} 3. Nc3 {[%clk 0:02:52]} 3... Nf6 {[%clk 0:02:59.6]}
4. Bg5 {[%clk 0:02:52.2]} 4... Bb4 {[%clk 0:03:00.4]} 5. exd5 {[%clk 0:02:51.9]}
5... Qxd5 {[%clk 0:02:58]} 6. Bxf6 {[%clk 0:02:51.9]} 6... Bxc3+ {[%clk
0:02:58.4]} 7. bxc3 {[%clk 0:02:52]} 7... gxf6 {[%clk 0:03:00.3]} 8. Nf3 {[%clk
0:02:52.9]} 8... Rg8 {[%clk 0:03:01.2]} 9. g3 {[%clk 0:02:43.7]} 9... Qa5 {[%clk
0:02:14.1]} 10. Qd2 {[%clk 0:02:40.7]} 10... c5 {[%clk 0:02:03.2]} 11. Bg2
{[%clk 0:02:40.6]} 11... Qa6 {[%clk 0:01:59.5]} 12. Qd3 {[%clk 0:02:37.7]} 12...
Qxd3 {[%clk 0:01:57.9]} 13. cxd3 {[%clk 0:02:39.6]} 13... cxd4 {[%clk
0:01:30.4]} 14. Nxd4 {[%clk 0:02:41.5]} 14... a6 {[%clk 0:01:31.5]} 15. Rb1
{[%clk 0:02:38.2]} 15... e5 {[%clk 0:01:31]} 16. Nc2 {[%clk 0:02:34.5]} 16...
Nc6 {[%clk 0:01:29.9]} 17. Rb6 {[%clk 0:02:30.7]} 17... Kd7 {[%clk 0:01:20]} 18.
Ke2 {[%clk 0:02:26.8]} 18... Kc7 {[%clk 0:01:18.8]} 19. Rhb1 {[%clk 0:02:26.5]}
19... Ra7 {[%clk 0:00:59.1]} 20. Ne3 {[%clk 0:02:26]} 20... Be6 {[%clk 0:00:49]}
21. Nd5+ {[%clk 0:02:23.5]} 21... Bxd5 {[%clk 0:00:50.2]} 22. Bxd5 {[%clk
0:02:25.4]} 22... Nd8 {[%clk 0:00:42.1]} 23. Rxf6 {[%clk 0:02:24.4]} 23... Rg7
{[%clk 0:00:25.8]} 24. Rh6 {[%clk 0:02:23.8]} 24... b5 {[%clk 0:00:12.6]} 25.
Be4 {[%clk 0:02:21.6]} 25... f5 {[%clk 0:00:06]} 26. Bxf5 {[%clk 0:02:21.8]}
26... Kb8 {[%clk 0:00:06.8]} 27. Rb4 {[%clk 0:02:19.6]} 27... Rgf7 {[%clk
0:00:06.2]} 28. Be4 {[%clk 0:02:16.8]} 28... Rfe7 {[%clk 0:00:06.4]} 29. a4
{[%clk 0:02:15.8]} 29... Ne6 {[%clk 0:00:05.4]} 30. axb5 {[%clk 0:02:16.2]}
30... a5 {[%clk 0:00:06.8]} 31. b6 {[%clk 0:02:10.6]} 31... Ra6 {[%clk
0:00:04.4]} 32. Rb5 {[%clk 0:02:10.9]} 32... a4 {[%clk 0:00:05.5]} 33. Rxe5
{[%clk 0:02:11.2]} 33... a3 {[%clk 0:00:06.1]} 34. Rhxe6 {[%clk 0:02:09.3]}
34... Rxe6 {[%clk 0:00:07.1]} 35. Rxe6 {[%clk 0:02:10.6]} 35... Rxb6 {[%clk
0:00:02.7]} 36. Rxb6+ {[%clk 0:02:11]} 36... Ka7 {[%clk 0:00:03.8]} 37. Rb3
{[%clk 0:02:12.3]} 37... a2 {[%clk 0:00:04.9]} 38. Ra3+ {[%clk 0:02:14.2]} 38...
Kb6 {[%clk 0:00:05.4]} 39. Rxa2 {[%clk 0:02:16.1]} 39... h5 {[%clk 0:00:05.6]}
40. d4 {[%clk 0:02:16]} 40... h4 {[%clk 0:00:06.1]} 41. c4 {[%clk 0:02:17]}
41... Kc7 {[%clk 0:00:07.5]} 42. gxh4 {[%clk 0:02:16.8]} 42... Kd6 {[%clk
0:00:08.2]} 43. c5+ {[%clk 0:02:18.2]} 43... Kc7 {[%clk 0:00:09.1]} 44. f4
{[%clk 0:02:19.5]} 44... Kd7 {[%clk 0:00:10]} 45. d5 {[%clk 0:02:20.9]} 45...
Kc7 {[%clk 0:00:10.9]} 46. f5 {[%clk 0:02:22.2]} 46... Kd7 {[%clk 0:00:12.1]}
47. f6 {[%clk 0:02:23.6]} 47... Ke8 {[%clk 0:00:12.7]} 48. Bg6+ {[%clk
0:02:24.7]} 48... Kd7 {[%clk 0:00:13.8]} 49. Ra7+ {[%clk 0:02:25.9]} 49... Kc8
{[%clk 0:00:14.1]} 50. d6 {[%clk 0:02:27.2]} 50... Kd8 {[%clk 0:00:15.1]} 51. c6
{[%clk 0:02:27.4]} 51... Kc8 {[%clk 0:00:16.1]} 52. Ra8# {[%clk 0:02:28.4]} 1-0

[Event "*** MasterClass Titled Tuesday Blitz"]
[Site "Chess.com"]
[Date "2017.09.05"]
[Round "1"]
[White "ftorodent"]
[Black "r31415"]
[Result "1-0"]
[WhiteElo "2476"]
[BlackElo "2148"]
[TimeControl "180+2"]
[EndTime "13:07:18 PDT"]
[Termination "ftorodent won by checkmate"]

1. d4 {[%clk 0:03:01.9]} 1... d6 {[%clk 0:02:58.8]} 2. Nf3 {[%clk 0:03:01.8]}
2... g6 {[%clk 0:02:59.3]} 3. c4 {[%clk 0:03:02.4]} 3... f5 {[%clk 0:02:59.6]}
4. Nc3 {[%clk 0:02:56.9]} 4... Nf6 {[%clk 0:03:00.3]} 5. h4 {[%clk 0:02:57.9]}
5... Bg7 {[%clk 0:02:59.3]} 6. h5 {[%clk 0:02:56.7]} 6... Nxh5 {[%clk
0:03:00.5]} 7. e4 {[%clk 0:02:57.7]} 7... fxe4 {[%clk 0:02:57.1]} 8. Nxe4 {[%clk
0:02:58.7]} 8... Bg4 {[%clk 0:02:27.6]} 9. Be2 {[%clk 0:02:59.1]} 9... Nc6
{[%clk 0:02:23.3]} 10. Be3 {[%clk 0:02:58.8]} 10... Qd7 {[%clk 0:01:57.2]} 11.
d5 {[%clk 0:02:59.3]} 11... Nd8 {[%clk 0:01:44.9]} 12. Nfg5 {[%clk 0:02:40.3]}
12... Bxe2 {[%clk 0:01:43.3]} 13. Qxe2 {[%clk 0:02:41.4]} 13... h6 {[%clk
0:01:20.6]} 14. Rxh5 {[%clk 0:02:22.5]} 14... gxh5 {[%clk 0:01:21.6]} 15. Qxh5+
{[%clk 0:02:23.3]} 15... Kf8 {[%clk 0:01:23.2]} 16. Nh3 {[%clk 0:01:51.6]} 16...
Qe8 {[%clk 0:01:02.7]} 17. Qg4 {[%clk 0:01:41.7]} 17... e5 {[%clk 0:00:53.5]}
18. O-O-O {[%clk 0:01:36.3]} 18... Nf7 {[%clk 0:00:40.4]} 19. f4 {[%clk
0:01:35.5]} 19... Qc8 {[%clk 0:00:36.1]} 20. Qh5 {[%clk 0:01:29.6]} 20... Qe8
{[%clk 0:00:32.7]} 21. Rf1 {[%clk 0:01:27.6]} 21... Kg8 {[%clk 0:00:32.9]} 22.
Qg6 {[%clk 0:01:27.5]} 22... Kf8 {[%clk 0:00:18]} 23. f5 {[%clk 0:01:24]} 23...
Ng5 {[%clk 0:00:12.7]} 24. Nhxg5 {[%clk 0:00:56.5]} 24... hxg5 {[%clk
0:00:13.2]} 25. Qxg5 {[%clk 0:00:57.7]} 25... Bh6 {[%clk 0:00:11.1]} 26. Qf6+
{[%clk 0:00:58.4]} 26... Kg8 {[%clk 0:00:11.9]} 27. Bxh6 {[%clk 0:00:58.3]}
27... Qf7 {[%clk 0:00:04.8]} 28. Qg5+ {[%clk 0:00:57]} 28... Kh7 {[%clk
0:00:05.9]} 29. Rh1 {[%clk 0:00:58]} 29... Rag8 {[%clk 0:00:04.6]} 30. Bg7+
{[%clk 0:00:58.5]} 30... Qh5 {[%clk 0:00:05.5]} 31. Rxh5# {[%clk 0:00:59.4]} 1-0

[Event "*** MasterClass Titled Tuesday Blitz"]
[Site "Chess.com"]
[Date "2017.09.05"]
[Round "1"]
[White "rubhani"]
[Black "danyuffa"]
[Result "0-1"]
[WhiteElo "2297"]
[BlackElo "2559"]
[TimeControl "180+2"]
[EndTime "13:07:22 PDT"]
[Termination "danyuffa won by resignation"]

1. e4 {[%clk 0:03:00.9]} 1... Nf6 {[%clk 0:02:48.6]} 2. e5 {[%clk 0:03:01]} 2...
Nd5 {[%clk 0:02:50.4]} 3. d4 {[%clk 0:03:02.1]} 3... d6 {[%clk 0:02:52.3]} 4. c4
{[%clk 0:03:02.9]} 4... Nb6 {[%clk 0:02:51.3]} 5. exd6 {[%clk 0:03:03.9]} 5...
exd6 {[%clk 0:02:53.8]} 6. Nc3 {[%clk 0:03:02.6]} 6... Be7 {[%clk 0:02:55.6]} 7.
Be3 {[%clk 0:03:03.6]} 7... O-O {[%clk 0:02:57.5]} 8. Bd3 {[%clk 0:03:04.4]}
8... Nc6 {[%clk 0:02:56.6]} 9. Nge2 {[%clk 0:02:56.1]} 9... Bg4 {[%clk
0:02:57.1]} 10. O-O {[%clk 0:02:54.5]} 10... Re8 {[%clk 0:02:58.1]} 11. b3
{[%clk 0:02:44.4]} 11... Bf6 {[%clk 0:02:58.7]} 12. Qd2 {[%clk 0:02:44.4]} 12...
Bh5 {[%clk 0:02:45.8]} 13. Nf4 {[%clk 0:02:12.1]} 13... Bg6 {[%clk 0:02:46.5]}
14. Bxg6 {[%clk 0:02:12.5]} 14... hxg6 {[%clk 0:02:49.3]} 15. Nfd5 {[%clk
0:02:13.4]} 15... Nxd5 {[%clk 0:02:47.2]} 16. Nxd5 {[%clk 0:02:12.8]} 16... Ne7
{[%clk 0:02:47.5]} 17. Nxf6+ {[%clk 0:01:18.6]} 17... gxf6 {[%clk 0:02:49.4]}
18. d5 {[%clk 0:01:19.2]} 18... Nf5 {[%clk 0:02:49.7]} 19. Bd4 {[%clk
0:01:11.3]} 19... Nxd4 {[%clk 0:02:46.3]} 20. Qxd4 {[%clk 0:01:12.3]} 20... Kg7
{[%clk 0:02:39.3]} 21. Rfe1 {[%clk 0:01:09.4]} 21... Qd7 {[%clk 0:02:40.1]} 22.
h3 {[%clk 0:01:03.5]} 22... a5 {[%clk 0:02:27.2]} 23. a3 {[%clk 0:00:42.9]}
23... b6 {[%clk 0:02:22.8]} 24. b4 {[%clk 0:00:39.8]} 24... a4 {[%clk
0:02:21.7]} 25. c5 {[%clk 0:00:37.5]} 25... bxc5 {[%clk 0:02:16.8]} 26. bxc5
{[%clk 0:00:39.4]} 26... Re5 {[%clk 0:02:13.1]} 27. f4 {[%clk 0:00:39.5]} 27...
Rxe1+ {[%clk 0:02:10.3]} 28. Rxe1 {[%clk 0:00:39.7]} 28... Ra5 {[%clk
0:02:06.6]} 29. Rc1 {[%clk 0:00:27]} 29... Qf5 {[%clk 0:01:46.8]} 30. g4 {[%clk
0:00:24.9]} 30... dxc5 {[%clk 0:01:25]} 31. Qd2 {[%clk 0:00:23.8]} 31... Qe4
{[%clk 0:01:23.3]} 32. Re1 {[%clk 0:00:18.6]} 32... Qd4+ {[%clk 0:01:23.1]} 33.
Qxd4 {[%clk 0:00:19.2]} 33... cxd4 {[%clk 0:01:25]} 34. Rc1 {[%clk 0:00:20.4]}
34... d3 {[%clk 0:01:20.6]} 0-1

[Event "*** MasterClass Titled Tuesday Blitz"]
[Site "Chess.com"]
[Date "2017.09.05"]
[Round "1"]
[White "NTBT_DHS"]
[Black "kikydu96"]
[Result "1-0"]
[WhiteElo "2545"]
[BlackElo "2294"]
[TimeControl "180+2"]
[EndTime "13:07:24 PDT"]
[Termination "NTBT_DHS won by checkmate"]

1. d4 {[%clk 0:02:41]} 1... d5 {[%clk 0:02:58.7]} 2. c4 {[%clk 0:02:42.1]} 2...
c6 {[%clk 0:02:58.9]} 3. Nf3 {[%clk 0:02:44]} 3... Nf6 {[%clk 0:02:54.4]} 4. e3
{[%clk 0:02:44.9]} 4... Bf5 {[%clk 0:02:53.3]} 5. Nc3 {[%clk 0:02:45.4]} 5... a6
{[%clk 0:02:53.5]} 6. Ne5 {[%clk 0:02:43.7]} 6... e6 {[%clk 0:02:42.2]} 7. f4
{[%clk 0:02:43.1]} 7... Nbd7 {[%clk 0:02:41.3]} 8. g4 {[%clk 0:02:43.7]} 8...
Be4 {[%clk 0:02:41.8]} 9. Rg1 {[%clk 0:02:41.8]} 9... Nxe5 {[%clk 0:02:23.2]}
10. dxe5 {[%clk 0:02:40.5]} 10... Nd7 {[%clk 0:02:19]} 11. cxd5 {[%clk
0:02:36.5]} 11... Qh4+ {[%clk 0:02:15.1]} 12. Rg3 {[%clk 0:02:37.6]} 12... cxd5
{[%clk 0:02:00]} 13. Nxe4 {[%clk 0:02:37.3]} 13... dxe4 {[%clk 0:02:00.1]} 14.
Qc2 {[%clk 0:02:37.2]} 14... Bb4+ {[%clk 0:01:54.2]} 15. Kf2 {[%clk 0:02:34.5]}
15... Qxh2+ {[%clk 0:01:52.8]} 16. Bg2 {[%clk 0:02:35.2]} 16... Be1+ {[%clk
0:01:50.5]} 17. Kxe1 {[%clk 0:02:33.7]} 17... Qxg3+ {[%clk 0:01:51.7]} 18. Kf1
{[%clk 0:02:35.3]} 18... O-O {[%clk 0:01:48.9]} 19. Bd2 {[%clk 0:02:34.5]} 19...
Rac8 {[%clk 0:01:48.7]} 20. Qxe4 {[%clk 0:02:35.5]} 20... Nc5 {[%clk 0:01:47.9]}
21. Qf3 {[%clk 0:02:34]} 21... Qxf3+ {[%clk 0:01:48.5]} 22. Bxf3 {[%clk
0:02:35.9]} 22... Rfd8 {[%clk 0:01:50]} 23. Ba5 {[%clk 0:02:37.2]} 23... Rd7
{[%clk 0:01:48.2]} 24. Rc1 {[%clk 0:02:37.1]} 24... Rd3 {[%clk 0:01:14.5]} 25.
Bxb7 {[%clk 0:02:36.1]} 25... Rb8 {[%clk 0:00:58.7]} 26. Rxc5 {[%clk 0:02:35.3]}
26... h5 {[%clk 0:01:00.1]} 27. Bxa6 {[%clk 0:02:20.7]} 27... Rxe3 {[%clk
0:00:57.5]} 28. Bc3 {[%clk 0:02:17.3]} 28... hxg4 {[%clk 0:00:54.9]} 29. Be2
{[%clk 0:02:14]} 29... g3 {[%clk 0:00:52.5]} 30. Bg4 {[%clk 0:01:49]} 30... Rd8
{[%clk 0:00:45.5]} 31. Kg2 {[%clk 0:01:44.6]} 31... Re4 {[%clk 0:00:38.5]} 32.
Kf3 {[%clk 0:01:41.1]} 32... Ra4 {[%clk 0:00:35.8]} 33. Kxg3 {[%clk 0:01:41.3]}
33... Rxa2 {[%clk 0:00:35.4]} 34. f5 {[%clk 0:01:39.1]} 34... Rd3+ {[%clk
0:00:32.7]} 35. Kf2 {[%clk 0:01:37.7]} 35... Ra4 {[%clk 0:00:32.9]} 36. fxe6
{[%clk 0:01:35.6]} 36... fxe6 {[%clk 0:00:21.5]} 37. Bxe6+ {[%clk 0:01:35.2]}
37... Kf8 {[%clk 0:00:22.9]} 38. Bc4 {[%clk 0:01:32.5]} 38... Rh3 {[%clk
0:00:20.3]} 39. Rc7 {[%clk 0:01:32.2]} 39... Ra1 {[%clk 0:00:19.1]} 40. e6
{[%clk 0:01:31.6]} 40... Rh2+ {[%clk 0:00:20.1]} 41. Kg3 {[%clk 0:01:32.8]}
41... Rh5 {[%clk 0:00:19.9]} 42. Bb4+ {[%clk 0:01:32.3]} 42... Ke8 {[%clk
0:00:20.7]} 43. Rc8# {[%clk 0:01:33]} 1-0

[Event "*** MasterClass Titled Tuesday Blitz"]
[Site "Chess.com"]
[Date "2017.09.05"]
[Round "1"]
[White "Sanan_Sjugirov"]
[Black "pastouche06"]
[Result "1-0"]
[WhiteElo "2650"]
[BlackElo "2347"]
[TimeControl "180+2"]
[EndTime "13:07:25 PDT"]
[Termination "Sanan_Sjugirov won by resignation"]

1. d4 {[%clk 0:03:01.9]} 1... g6 {[%clk 0:02:59.9]} 2. e4 {[%clk 0:03:02.1]}
2... Bg7 {[%clk 0:03:00.9]} 3. Nc3 {[%clk 0:03:02.9]} 3... e6 {[%clk 0:03:01.2]}
4. Nf3 {[%clk 0:02:59.9]} 4... Ne7 {[%clk 0:03:00.3]} 5. h4 {[%clk 0:02:56.4]}
5... h6 {[%clk 0:03:00]} 6. Be3 {[%clk 0:02:48]} 6... d5 {[%clk 0:03:00.2]} 7.
Bd3 {[%clk 0:02:34.2]} 7... a6 {[%clk 0:02:39.9]} 8. Qd2 {[%clk 0:02:33.6]} 8...
dxe4 {[%clk 0:02:36.9]} 9. Bxe4 {[%clk 0:02:34.6]} 9... Nd5 {[%clk 0:02:34]} 10.
Bxd5 {[%clk 0:02:22.2]} 10... exd5 {[%clk 0:02:35.9]} 11. O-O-O {[%clk
0:02:23.3]} 11... Be6 {[%clk 0:02:36.8]} 12. Bf4 {[%clk 0:02:20.9]} 12... Nc6
{[%clk 0:02:28.4]} 13. Rde1 {[%clk 0:02:17.7]} 13... Qd7 {[%clk 0:02:23.3]} 14.
Ne5 {[%clk 0:02:10.3]} 14... Nxe5 {[%clk 0:02:23.1]} 15. Bxe5 {[%clk 0:02:12.2]}
15... f6 {[%clk 0:02:11.2]} 16. Bxc7 {[%clk 0:02:08]} 16... O-O {[%clk
0:02:05.3]} 17. Bf4 {[%clk 0:02:08.4]} 17... h5 {[%clk 0:01:59.7]} 18. Bh6
{[%clk 0:02:07.8]} 18... b5 {[%clk 0:01:58.1]} 19. Bxg7 {[%clk 0:02:07.8]} 19...
Kxg7 {[%clk 0:02:00]} 20. Re3 {[%clk 0:02:06.8]} 20... Rfe8 {[%clk 0:01:57.5]}
21. Rhe1 {[%clk 0:02:06.9]} 21... Bf7 {[%clk 0:01:56.4]} 22. Rxe8 {[%clk
0:02:05.5]} 22... Rxe8 {[%clk 0:01:58.3]} 23. Rxe8 {[%clk 0:02:04.9]} 23... Qxe8
{[%clk 0:02:00.2]} 24. Qe2 {[%clk 0:02:01.3]} 24... Qd7 {[%clk 0:01:48.9]} 25.
a3 {[%clk 0:01:58.9]} 25... Qf5 {[%clk 0:01:44.5]} 26. Qe3 {[%clk 0:01:54.6]}
26... Qg4 {[%clk 0:01:39.1]} 27. g3 {[%clk 0:01:55.4]} 27... Qd7 {[%clk
0:01:38.7]} 28. Ne2 {[%clk 0:01:54.3]} 28... a5 {[%clk 0:01:36.9]} 29. b3 {[%clk
0:01:50.8]} 29... Qd6 {[%clk 0:01:29.9]} 30. Kb2 {[%clk 0:01:50.8]} 30... Qc6
{[%clk 0:00:58.5]} 31. Nf4 {[%clk 0:01:47.2]} 31... b4 {[%clk 0:00:51.6]} 32. a4
{[%clk 0:01:45.9]} 32... Qb6 {[%clk 0:00:35.6]} 33. Nd3 {[%clk 0:01:44.1]} 33...
Qa6 {[%clk 0:00:32.4]} 34. Qe7 {[%clk 0:01:36.7]} 34... Qb6 {[%clk 0:00:14]} 35.
Nc5 {[%clk 0:01:36.1]} 35... Qc6 {[%clk 0:00:15.3]} 36. Qd7 {[%clk 0:01:25.4]}
36... Qb6 {[%clk 0:00:13.7]} 37. f4 {[%clk 0:01:19.6]} 37... Qa6 {[%clk
0:00:11.8]} 38. Nxa6 {[%clk 0:01:19.7]} 1-0

[Event "*** MasterClass Titled Tuesday Blitz"]
[Site "Chess.com"]
[Date "2017.09.05"]
[Round "1"]
[White "temiksmozg"]
[Black "pandamaster3000"]
[Result "1-0"]
[WhiteElo "2423"]
[BlackElo "1906"]
[TimeControl "180+2"]
[EndTime "13:07:26 PDT"]
[Termination "temiksmozg won by resignation"]

1. d4 {[%clk 0:02:41.9]} 1... Nf6 {[%clk 0:03:00.4]} 2. c4 {[%clk 0:02:42.8]}
2... g6 {[%clk 0:03:01.2]} 3. Nc3 {[%clk 0:02:44.1]} 3... Bg7 {[%clk 0:03:02]}
4. e4 {[%clk 0:02:45.1]} 4... d6 {[%clk 0:03:03.3]} 5. Nf3 {[%clk 0:02:46.6]}
5... O-O {[%clk 0:03:04.5]} 6. Be2 {[%clk 0:02:48.1]} 6... Na6 {[%clk
0:03:05.6]} 7. O-O {[%clk 0:02:48.1]} 7... e5 {[%clk 0:03:06.8]} 8. Re1 {[%clk
0:02:47.5]} 8... c6 {[%clk 0:03:04.3]} 9. Bf1 {[%clk 0:02:44.5]} 9... Bg4 {[%clk
0:02:58.8]} 10. d5 {[%clk 0:02:45.1]} 10... cxd5 {[%clk 0:02:59.8]} 11. cxd5
{[%clk 0:02:44.5]} 11... Ne8 {[%clk 0:02:49.6]} 12. h3 {[%clk 0:02:36.6]} 12...
Bd7 {[%clk 0:02:43.4]} 13. a3 {[%clk 0:02:30.3]} 13... f5 {[%clk 0:02:40.4]} 14.
Ng5 {[%clk 0:02:28.6]} 14... Nac7 {[%clk 0:02:23.3]} 15. Qb3 {[%clk 0:02:14.5]}
15... Qe7 {[%clk 0:01:29.9]} 16. Qxb7 {[%clk 0:02:06.5]} 16... f4 {[%clk
0:01:27.3]} 17. Ne6 {[%clk 0:01:58]} 17... Bxe6 {[%clk 0:01:15.1]} 18. dxe6
{[%clk 0:01:58.4]} 18... Qxe6 {[%clk 0:01:14.1]} 19. Nd5 {[%clk 0:01:54.2]}
19... Rc8 {[%clk 0:00:59.9]} 20. Bc4 {[%clk 0:01:47]} 20... Kh8 {[%clk
0:00:33.7]} 21. Nb6 {[%clk 0:01:45.2]} 21... d5 {[%clk 0:00:28.9]} 22. Nxc8
{[%clk 0:01:17.9]} 22... dxc4 {[%clk 0:00:22.8]} 23. Bd2 {[%clk 0:01:18.8]}
23... f3 {[%clk 0:00:21.9]} 24. Rac1 {[%clk 0:01:01.8]} 24... fxg2 {[%clk
0:00:19.1]} 25. Rc3 {[%clk 0:01:02.6]} 25... Qf7 {[%clk 0:00:16.7]} 26. f3
{[%clk 0:00:50.2]} 26... Nf6 {[%clk 0:00:15.4]} 27. Nd6 {[%clk 0:00:48.2]} 27...
Qd7 {[%clk 0:00:14.6]} 28. Nxc4 {[%clk 0:00:46.5]} 28... Qxh3 {[%clk 0:00:16]}
29. Kf2 {[%clk 0:00:41.4]} 29... Ng4+ {[%clk 0:00:14.7]} 30. Ke2 {[%clk
0:00:42.7]} 30... Qxf3+ {[%clk 0:00:15.6]} 31. Rxf3 {[%clk 0:00:44.6]} 1-0